[Event "39th OBSenEM 2023"]
[Site "Berlin"]
[Date "2023.01.27"]
[Round "4.2"]
[White "Herrmann, Dirk"]
[Black "Brustkern, Juergen"]
[Result "0-1"]
[ECO "A86"]
[WhiteElo "1842"]
[BlackElo "2182"]
[Annotator "TA"]
[PlyCount "50"]
[EventDate "2023.01.24"]
[EventType "swiss"]
[EventCountry "GER"]
[SourceTitle "playchess.com"]
[Source "ChessBase"]
[SourceQuality "1"]
[TimeControl "40/5400+30:1800+30"]

{[%evp 9,50,18,9,16,19,16,45,22,43,25,31,39,40,14,49,46,70,14,10,-3,19,-80,-58,-55,-49,-226,-235,-491,-490,-474,-486,-486,-473,-492,-370,-413,-391,-361,-378,-955,-968,-885,-662]} 1. Nf3 f5 2. c4 Nf6 3. g3 d6 4. d4 e6 5. Bg5 Be7 6. Bg2 {A86: Dutch Defence: Leningrad System: Unusual lines and 5 Nh3.} O-O 7. Nc3 Nbd7 8. Qc2 {White is slightly better.} h6 9. Bd2 c6 10. O-O {[#]} Qe8 $146 ({Predecessor:} 10... e5 11. dxe5 Nxe5 12. b3 Nxf3+ 13. Bxf3 Be6 14. Rad1 Qe8 15. e3 Ng4 16. Bg2 h5 {0-1 Niklasson,C-Kaiszauri,K SWE-ch Gothenburg 1975}) 11. a4 {[%cal Ba2a4,Ba4a5][%mdl 32]} Qh5 {[%emt 0:05:30]} 12. a5 {[%emt 0:18:35]} a6 {[%emt 0:00:30]} 13. Rab1 {[%emt 0:00:30]} ({Better is} 13. b4 $14) 13... e5 $11 {[%emt 0:00:30]} 14. dxe5 {[%emt 0:00:30]} dxe5 {[%emt 0:00:30]} 15. e4 {[%emt 0:00:30]} (15. Na4 $11) 15... Nc5 {[%emt 0:00:30][%cal Rf5e4]} 16. Nxe5 {[%emt 0:00:30]} fxe4 {[%emt 0:00:30]} 17. f4 {[%emt 0:00:30] [#] This move loses the game for White.} (17. b4 $15) 17... exf3 $19 {[%emt 0:00:30]} 18. Nxf3 {[%emt 0:00:30]} (18. Ng6 fxg2 19. Nxe7+ Kf7 20. Rxf6+ Kxf6 21. Nxc8 Raxc8 22. b4) 18... Bf5 {[%emt 0:00:30]} 19. Qd1 {[%emt 0:00:30]} Bxb1 {[%emt 0:00:30]} 20. Qxb1 {[%emt 0:00:30]} Nb3 {[%emt 0:00:30] [#] ...Ng4 would be deadly.} 21. Bf4 {[%emt 0:00:30]} Rad8 {[%emt 0:00:30]} (21... Nxa5 $2 {perishes.} 22. Ne5 $19) (21... Qxa5 $2 22. Qc2 Qc5+ 23. Kh1 $19) 22. Ne5 {[%emt 0:00:30]} Bc5+ {[%emt 0:00:30]} ({Inferior is} 22... Nxa5 23. b4 g5 24. Ng6 gxf4 25. Nxe7+ Kf7 26. Nf5 Nxc4 27. Rxf4 $15) 23. Kh1 {[%emt 0:00:30]} Nd2 {[%emt 0:00:30] Wards off Bf3} ({And not} 23... Nxa5 24. Bf3 Qh3 25. Ne4 Nxe4 26. Bxe4 $17) 24. Qe1 {[%emt 0:00:30]} (24. Bxd2 Rxd2 25. Rf5 Rxb2 26. Rxh5 Rxb1+ 27. Nxb1 Nxh5 28. Nd3) 24... Nxf1 {[%emt 0:00:30]} 25. Qxf1 {[%emt 0:00:30]} Ng4 {[%emt 0:00:30] Weighted Error Value: White=0.72/Black=0.19 (very precise)} 0-1

[Event "39th OBSenEM 2023"]
[Site "Berlin"]
[Date "2023.01.27"]
[Round "4.3"]
[White "Kreutzkamp, Hans-Rudolf"]
[Black "Koetz, Andreas"]
[Result "1/2-1/2"]
[ECO "B33"]
[WhiteElo "2094"]
[BlackElo "1925"]
[Annotator "TA"]
[PlyCount "65"]
[EventDate "2023.01.24"]
[EventType "swiss"]
[EventCountry "GER"]
[SourceTitle "playchess.com"]
[Source "ChessBase"]
[SourceQuality "1"]
[TimeControl "40/5400+30:1800+30"]

{[%evp 12,65,4,-13,0,-13,5,0,11,-7,-11,-12,-12,-10,0,-6,15,-7,35,6,42,34,36,10,19,6,44,0,0,0,0,0,17,0,9,0,26,-12,-10,-12,-5,-52,-50,-123,-130,-267,-275,-275,-275,-275,-80,-87,-95,-89,-53,-63]} 1. e4 {[%emt 0:00:04]} c5 {[%emt 0:00:20]} 2. Nf3 {[%emt 0:00:06]} Nc6 {[%emt 0:00:06]} 3. d4 {[%emt 0:00:07]} cxd4 {[%emt 0:00:06]} 4. Nxd4 {[%emt 0:00:04]} Nf6 {[%emt 0:00:18]} 5. Nc3 {[%emt 0:00:08]} e5 {[%emt 0:00:09]} 6. Nxc6 {[%emt 0:00:49]} bxc6 {[%emt 0:00:10]} 7. Be2 {[%emt 0:05:15]} Bb4 {[%emt 0:00:44] B33: Sicilian: Pelikan and Sveshnikov Variations.} 8. Qd3 {[%emt 0:02:56]} a5 {[%emt 0:00:34]} 9. O-O {[%emt 0:01:07]} O-O {[%emt 0:00:47] [#] The position is equal.} 10. Bg5 $146 {[%emt 0:01:47]} ({Predecessor:} 10. a4 Ba6 11. Qd1 Bxc3 12. Bxa6 Rxa6 13. bxc3 Nxe4 14. Qe2 Nc5 15. Qxe5 d6 16. Qd4 {1-0 Holzner,A (1370)-Guseck,M (1127) Tirol-ch Jenbach 2013 (5)}) 10... h6 {[%emt 0:04:47]} 11. Bh4 {[%emt 0:00:45]} Ba6 {[%emt 0:02:10]} 12. Qf3 {[%emt 0:00:31]} Bxe2 {[%emt 0:00:19]} 13. Nxe2 {[%emt 0:00:43]} Be7 {[%emt 0:01:17]} 14. c4 {[%emt 0:02:01]} d6 {[%emt 0:01:27]} 15. Rfd1 {[%emt 0:01:26]} Ne8 {[%emt 0:00:34]} (15... Nh7 $5 {[%cal Re7h4]} 16. Bxe7 Qxe7 $14) 16. Bxe7 {[%emt 0:01:24]} Qxe7 {[%emt 0:00:10]} 17. Ng3 {[%emt 0:02:27]} g6 {[%emt 0:00:11] Prevents Nf5.} 18. Rd2 {[%emt 0:00:22]} Qe6 {[%emt 0:00:46]} 19. b3 {[%emt 0:01:00]} a4 {[%emt 0:01:44]} 20. Rad1 {[%emt 0:00:26]} axb3 {[%emt 0:00:19]} 21. axb3 {[%emt 0:00:04]} Rb8 {[%emt 0:01:41]} 22. Qe3 {[%emt 0:03:10]} Kg7 {[%emt 0:00:49]} 23. Rd3 {[%emt 0:00:32]} (23. Nf1 {simplifies} c5 24. Qg3 Nf6 25. Rxd6 Nxe4 26. Rxe6 Nxg3 27. Rxe5 Nxf1 28. Kxf1 Rxb3 29. Rxc5 Ra8 30. Rd2) 23... Rb7 {[%emt 0:01:07] Prevents Qa7} 24. f4 {[%emt 0:01:20]} exf4 {[%emt 0:02:01]} 25. Qxf4 {[%emt 0:00:09]} Qe5 {[%emt 0:00:15]} 26. Qf2 {[%emt 0:03:39]} (26. Ne2 $11) 26... Nf6 $15 {[%emt 0:06:38]} 27. Rxd6 {[%emt 0:01:39]} (27. Qd4 $1 $15) 27... Rxb3 $17 {[%emt 0:00:08]} 28. Rxc6 {[%emt 0:07:23]} (28. Qd4 $17 Qxd4+ 29. R6xd4) 28... Ng4 $19 {[%emt 0:01:00]} 29. Qe2 {[%emt 0:04:22] [#]} h5 {[%emt 0:01:47]} 30. Nf1 {[%emt 0:02:44] [#]} Re3 $2 {[%emt 0:01:56]} 31. Qd2 $17 {[%emt 0:00:50] Black must now prevent h3.} Rxe4 {[%emt 0:00:54]} 32. h3 {[%emt 0:00:54]} Nh6 {[%emt 0:01:41]} 33. Qd5 {[%emt 0:03:45] Weighted Error Value: White=0.23 (precise) /Black=0.17 (very precise)} 1/2-1/2

[Event "39th OBSenEM 2023"]
[Site "Berlin"]
[Date "2023.01.28"]
[Round "5.1"]
[White "Brustkern, Juergen"]
[Black "Koehler, Gerhard"]
[Result "1/2-1/2"]
[ECO "A45"]
[WhiteElo "2182"]
[BlackElo "2241"]
[Annotator "TA"]
[PlyCount "55"]
[EventDate "2023.01.24"]
[EventType "swiss"]
[EventCountry "GER"]
[SourceTitle "playchess.com"]
[Source "ChessBase"]
[SourceQuality "1"]
[TimeControl "40/5400+30:1800+30"]

{[%evp 9,55,-44,-33,-33,0,-4,-5,-7,-9,-29,-26,-58,-63,-61,-61,-45,56,49,83,63,58,28,81,80,68,45,76,49,68,50,250,236,240,238,221,116,195,200,245,170,181,136,155,161,133,137,175,97]} 1. d4 {[%emt 0:00:05]} Nf6 {[%emt 0:00:20][%cal Bg8f6,Bf6h5,Bh5g3][%mdl 32]} 2. Bg5 {[%emt 0:00:31]} c5 {[%emt 0:00:11]} 3. d5 {[%emt 0:00:12]} d6 {[%emt 0:00:31]} 4. Nc3 {[%emt 0:03:50]} h6 {[%emt 0:00:59]} 5. Bh4 {[%emt 0:01:02]} g5 {[%emt 0:00:59]} 6. Bg3 {[%emt 0:00:10] A45: Trompowsky Attack.} Nh5 {[%emt 0:00:34]} 7. e4 {[%emt 0:07:58]} Nxg3 {[%emt 0:00:29]} 8. hxg3 {[%emt 0:00:05] The position is equal.} Bg7 {[%emt 0:00:25] [#]} 9. Bb5+ $146 {[%emt 0:02:03]} ({Predecessor:} 9. Nf3 a6 10. a4 Nd7 11. Nd2 Ne5 12. Be2 Rb8 13. f4 Ng6 14. e5 dxe5 15. f5 Bxf5 {0-1 Ahmad,A (2355)-Koniahli,M (2328) Olympiad-43 Batumi 2018 (6.63)}) 9... Nd7 {[%emt 0:01:58]} 10. a4 {[%emt 0:01:01]} a6 {[%emt 0:00:30]} 11. Be2 {[%emt 0:06:27]} Qa5 {[%emt 0:02:02]} 12. Nf3 {[%emt 0:00:53][%cal Bg1f3,Bf3d2,Bd2c4,Bc4e3,Be3d5][%mdl 32]} Nf6 {[%emt 0:08:31]} ({Black should try} 12... Qb4 $15 13. Ra2 Bxc3+ 14. bxc3 Qxe4) 13. Nd2 $1 $14 {[%emt 0:03:52]} Bd7 {[%emt 0:06:43]} 14. Ra3 {[%emt 0:04:31]} Qc7 {[%emt 0:05:22]} 15. Nc4 {[%emt 0:03:17]} O-O {[%emt 0:02:52]} (15... b6 $11 {remains equal.}) 16. a5 $16 {[%emt 0:01:48]} Rad8 {[%emt 0:00:57]} 17. O-O {[%emt 0:07:27]} e6 {[%emt 0:11:33]} 18. Ne3 {[%emt 0:05:33]} Rfe8 {[%emt 0:02:42]} 19. Bc4 {[%emt 0:07:12]} exd5 $2 {[%emt 0:12:13]} (19... Bc8 $14) 20. Ncxd5 {[%emt 0:07:12]} Nxd5 {[%emt 0:02:51]} 21. Nxd5 {[%emt 0:01:20]} Qc6 {[%emt 0:00:42]} 22. Qf3 {[%emt 0:03:31]} (22. Qh5 $1 $18 Kh8 23. Nf6 (23. Qxf7 Be6 $16)) 22... Re6 {[%emt 0:02:35] Prevents Nf6+} (22... Be6 $16) 23. Rb3 $18 {[%emt 0:03:18] White is clearly better.} Rde8 {[%emt 0:04:49][%cal Bd8e8,Be8e4,Be4d4][%mdl 32]} 24. Rb6 {[%emt 0:07:19]} Qc8 {[%emt 0:00:17]} 25. Ne3 {[%emt 0:02:59]} Rf6 {[%emt 0:02:04]} 26. Qd1 {[%emt 0:01:12] White is more active.} ({Much less strong is} 26. Nf5 Bc6 $16) 26... Rxe4 {[%emt 0:02:47] [#]} 27. Bd5 $1 {[%emt 0:01:15]} Rd4 {[%emt 0:03:54] [#]} 28. Qe2 {[%emt 0:02:29] Weighted Error Value: White=0.20 (precise) /Black=0.38} ({Better is} 28. Bxb7 $1 $18 Rxd1 29. Bxc8 Rxf1+ 30. Kxf1 Bxc8 31. Rb8) 1/2-1/2

[Event "39th OBSenEM 2023"]
[Site "Berlin"]
[Date "2023.01.28"]
[Round "5.2"]
[White "Hess, Christian"]
[Black "Kreutzkamp, Hans-Rudolf"]
[Result "1-0"]
[ECO "D94"]
[WhiteElo "2215"]
[BlackElo "2094"]
[Annotator "TA"]
[PlyCount "75"]
[EventDate "2023.01.24"]
[EventType "swiss"]
[EventCountry "GER"]
[SourceTitle "playchess.com"]
[Source "ChessBase"]
[SourceQuality "1"]
[TimeControl "40/5400+30:1800+30"]

{[%evp 17,75,0,15,0,22,12,19,0,54,30,32,25,114,101,114,100,119,125,171,172,176,157,191,173,329,217,318,325,321,326,292,176,283,279,504,481,483,470,486,483,484,447,468,470,439,205,4894,4894,4894,1599,2877,2799,2221,1194,29991,29992,29992,29993,29993,29994]} 1. d4 {[%emt 0:00:11]} Nf6 {[%emt 0:01:32]} 2. c4 {[%emt 0:00:10]} g6 {[%emt 0:00:05]} 3. Nc3 {[%emt 0:00:41]} Bg7 {[%emt 0:00:13]} 4. Nf3 {[%emt 0:00:56]} d5 {[%emt 0:01:57]} 5. e3 {[%emt 0:00:52]} O-O {[%emt 0:00:29]} 6. cxd5 {[%emt 0:00:42]} Nxd5 {[%emt 0:00:33]} 7. Bc4 {[%emt 0:00:10]} Nxc3 {[%emt 0:01:31]} 8. bxc3 {[%emt 0:00:06]} c5 {[%emt 0:00:09]} 9. O-O {[%emt 0:00:35]} Nc6 {[%emt 0:04:07]} 10. Qe2 {[%emt 0:05:27] D94: Grünfeld: 4 Nf3 Bg7 5 e3.} (10. dxc5 Bxc3 11. Rb1 Bf5 $15) 10... Qa5 {[%emt 0:09:08] [#]} 11. Rb1 $146 {[%emt 0:18:29]} ({Predecessor:} 11. Bd2 Qc7 12. Rac1 e5 13. d5 Na5 14. e4 Nxc4 15. Qxc4 b6 16. Ne1 a5 17. Qe2 Qd7 {0-1 Martinovsky,E (2375)-Gurevich,I (2495) Lloyds Bank op 15th 1991 (9)}) 11... a6 {[%emt 0:10:07]} 12. Rd1 {[%emt 0:08:19] The position is equal.} h6 {[%emt 0:03:16]} (12... Qxc3 $11 13. Bb2 (13. dxc5 Na5 $11) 13... Qa5) 13. h3 {[%emt 0:05:03]} (13. Nd2 $5 {[%cal Rd2b3]}) 13... b5 {[%emt 0:05:31]} 14. Bd3 {[%emt 0:04:32]} Bb7 {[%emt 0:01:23] [#]} (14... Be6 $11) 15. d5 $1 $16 {[%emt 0:01:57]} (15. dxc5 $6 Qxc3 16. Bb2 Qxc5 $11) 15... Ne5 {[%emt 0:02:53]} 16. Nxe5 {[%emt 0:02:36]} Bxe5 {[%emt 0:00:13]} 17. c4 {[%emt 0:00:32]} Rab8 {[%emt 0:16:11]} (17... Rfe8 $16 18. e4 (18. cxb5 Bxd5 19. Bb2 Bxb2 $14) 18... e6) 18. e4 $18 {[%emt 0:01:37][%cal Rc4b5,Be3e4,Be4e5][%mdl 32]} (18. cxb5 $6 Bxd5 19. bxa6 c4 20. Rxb8 (20. Bxc4 $2 Bxc4 21. Qc2 Qxa6 $19) 20... Bxb8 $11) 18... bxc4 {[%emt 0:00:41]} 19. Bxc4 {[%emt 0:01:07]} Kh7 {[%emt 0:01:24]} 20. Rb3 {[%emt 0:13:13]} Bc8 $2 {[%emt 0:03:16]} (20... Ba8 {is a better defense.} 21. Bxa6 Bd4) 21. Qe3 {[%emt 0:05:43]} g5 {[%emt 0:01:23]} (21... Qa4 $142 22. d6 (22. Qxc5 Rb7 $16) (22. Qxh6+ Kg8 $16) 22... e6 23. Qxh6+ (23. Qxc5 Bg7 $18) 23... Kg8) 22. Rxb8 {[%emt 0:04:05]} Bxb8 {[%emt 0:00:30]} 23. e5 {[%emt 0:01:18]} Bf5 {[%emt 0:01:26]} 24. Bd3 {[%emt 0:01:42]} Bg6 {[%emt 0:00:14]} (24... Bxd3 $142 25. Qxd3+ (25. Rxd3 c4 $11) 25... Kg8) 25. d6 {[%emt 0:05:04][%cal Bd5d6,Bd6d7][%mdl 32]} e6 $2 {[%emt 0:05:26] [#]} (25... exd6 26. exd6 Qa4 27. Bxg6+ Kxg6 28. Qd3+ (28. Rd5 Qxa2 29. Qd3+ Kg7 $18) 28... Kg7) 26. h4 $1 {[%emt 0:02:33][%mdl 512]} Qa4 {[%emt 0:04:25]} (26... Qb4 27. hxg5) 27. Qf3 {[%emt 0:02:11]} Qxh4 {[%emt 0:01:12]} 28. Bxg6+ {[%emt 0:00:13]} (28. Bxa6 Bh5 29. Qd3+ Kg7 $16) 28... Kxg6 {[%emt 0:00:11]} 29. Qf6+ {[%emt 0:00:26]} (29. g3 Qc4 30. Be3 a5 31. Qf6+ Kh7) 29... Kh7 {[%emt 0:01:23]} 30. d7 {[%emt 0:02:09]} Bc7 {[%emt 0:00:43]} 31. Qe7 {[%emt 0:02:03]} (31. d8=N Qh5 32. f3 Bxd8 33. Rxd8 Rxd8 34. Qxd8 Qh4 $18) (31. d8=R $142 Bxd8 32. Rxd8) 31... Rd8 {[%emt 0:01:36]} (31... Qh5 32. f3 (32. d8=R Bxd8 33. Rxd8 Rxd8 $16) (32. d8=Q Bxd8 33. Rxd8 Rxd8 $16) 32... Rg8) 32. Qxf7+ {[%emt 0:00:13]} ({Weaker is} 32. Qxc5 Qa4 33. Rd4 Qa5 34. Qxa5 Bxa5 $16) 32... Kh8 {[%emt 0:00:05]} 33. Qf6+ {[%emt 0:01:08]} Kh7 {[%emt 0:00:58]} 34. Qe7+ {[%emt 0:00:28]} Kh8 {[%emt 0:00:17]} 35. Qxe6 {[%emt 0:01:24] Intending Qf6+ and mate.} g4 {[%emt 0:01:09]} 36. Qe8+ {[%emt 0:01:03] White mates.} Kg7 {[%emt 0:01:00]} 37. g3 {[%emt 0:01:17]} Qh3 {[%emt 0:01:09]} 38. Bb2 {[%emt 0:00:33] White took control after the opening. Artfully played by Hess.   Weighted Error Value: White=0.31/Black=0.59} 1-0

[Event "39th OBSenEM 2023"]
[Site "Berlin"]
[Date "2023.01.28"]
[Round "5.3"]
[White "Postler, Reinhard"]
[Black "Wolf, Christian"]
[Result "1-0"]
[ECO "B68"]
[WhiteElo "2202"]
[BlackElo "2083"]
[Annotator "TA"]
[PlyCount "55"]
[EventDate "2023.01.24"]
[EventType "swiss"]
[EventCountry "GER"]
[SourceTitle "playchess.com"]
[Source "ChessBase"]
[SourceQuality "1"]
[TimeControl "40/5400+30:1800+30"]

{[%evp 20,55,47,-3,118,1,145,91,145,149,157,157,267,254,275,268,312,240,317,291,383,411,424,421,418,417,525,323,350,337,654,671,734,730,727,692,1174,1184]} 1. e4 {[%emt 0:00:04]} c5 {[%emt 0:00:14]} 2. Nf3 {[%emt 0:00:04]} d6 {[%emt 0:00:11]} 3. d4 {[%emt 0:00:15]} cxd4 {[%emt 0:00:15]} 4. Nxd4 {[%emt 0:00:01]} Nf6 {[%emt 0:00:12]} 5. Nc3 {[%emt 0:00:05]} Nc6 {[%emt 0:00:16]} 6. Bg5 {[%emt 0:00:13]} e6 {[%emt 0:00:20]} 7. Qd2 {[%emt 0:00:36]} a6 {[%emt 0:00:27]} 8. O-O-O {[%emt 0:00:39]} Bd7 {[%emt 0:00:35]} 9. f4 {[%emt 0:06:33]} Be7 {[%emt 0:01:10]} 10. Nf3 {[%emt 0:06:26]} b5 {[%emt 0:05:04]} 11. Bd3 {[%emt 0:00:58]} (11. Bxf6 $14 gxf6 12. Kb1) 11... Qb6 {[%emt 0:09:28] B68: Sicilian: Richter-Rauzer: 7...a6 8 0-0-0 Bd7 9 f4 Be7 .} (11... h6 $11 12. Bh4 O-O) 12. Kb1 {[%emt 0:01:57] [#]} (12. e5 $16) 12... O-O-O $146 {[%emt 0:04:52]} (12... b4 $11 {keeps the balance.} 13. Na4 Qa5) ({Predecessor:} 12... h6 13. Bh4 O-O-O 14. e5 dxe5 15. fxe5 Nd5 16. Nxd5 exd5 17. Bxe7 Nxe7 18. Qb4 Nc6 19. Qf4 {1-0 Mamedov,R (2703)-Perro,L (2580) Titled Tuesday intern op 2nd Febr blitz 2019 (6)}) 13. Rhe1 {[%emt 0:08:29]} (13. e5 $142) 13... Kb8 {[%emt 0:07:51]} (13... h6 $142) 14. e5 $16 {[%emt 0:06:20]} b4 {[%emt 0:09:50]} 15. exf6 {[%emt 0:00:59]} (15. Na4 $6 Qa5 $16) 15... bxc3 {[%emt 0:01:23]} (15... gxf6 $16 16. Nd5 (16. Na4 Qa5 $11) 16... exd5) 16. Qxc3 $18 {[%emt 0:00:11]} gxf6 {[%emt 0:01:31]} 17. Bxf6 {[%emt 0:00:02]} Rhg8 {[%emt 0:01:00]} 18. g3 {[%emt 0:01:44]} ({But not} 18. Bxh7 $6 Rxg2 19. Ng5 Bxf6 20. Qxf6 Rxh2 21. Rxd6 (21. Qxf7 Nb4 $16) 21... Be8 $18) 18... h5 {[%emt 0:03:46]} 19. Ng5 {[%emt 0:03:51]} Rgf8 {[%emt 0:11:40]} 20. Bg7 {[%emt 0:11:19]} Ka7 {[%emt 0:01:52]} 21. Bxf8 {[%emt 0:00:49]} Rxf8 {[%emt 0:00:07]} 22. Qg7 {[%emt 0:02:29]} e5 {[%emt 0:06:30]} 23. Bc4 {[%emt 0:05:29]} Rb8 {[%emt 0:06:00][%csl Gb8][%cal Rb6b2] [#]} 24. b3 {[%emt 0:01:00]} (24. Qxf7 $2 Qxb2#) 24... d5 $2 {[%emt 0:09:33]} (24... Rb7 25. Bd5 Bg4 26. fxe5 Bxd1 27. Rxd1 dxe5 28. Nxf7 (28. Bxf7 Bxg5 {[%mdl 64] Remove Defender, Deflection} 29. Qxg5 Rxf7 $17) 28... Ba3) 25. Bxd5 {[%emt 0:05:44] White is clearly winning.} ({Not} 25. fxe5 Bf5 $16) 25... Bb4 {[%emt 0:00:22]} 26. Re4 {[%emt 0:02:34][%cal Be1e4,Be4c4,Bc4b4][%mdl 32]} Rb7 {[%emt 0:04:53]} 27. Rc4 {[%emt 0:01:56]} Na5 {[%emt 0:08:33]} 28. Rxb4 {[%emt 0:01:37] Black did not feel at home in the position after the opening.   Weighted Error Value: White=0.38/Black=0.89} 1-0

[Event "39th OBSenEM 2023"]
[Site "Berlin"]
[Date "2023.01.28"]
[Round "5.4"]
[White "Koetz, Andreas"]
[Black "Syre, Christian"]
[Result "1-0"]
[ECO "A10"]
[WhiteElo "1925"]
[BlackElo "2197"]
[Annotator "TA"]
[PlyCount "49"]
[EventDate "2023.01.24"]
[EventType "swiss"]
[EventCountry "GER"]
[SourceTitle "playchess.com"]
[Source "ChessBase"]
[SourceQuality "1"]
[TimeControl "40/5400+30:1800+30"]

{[%evp 9,49,-15,-10,-11,-20,-24,13,12,48,47,52,5,30,31,19,-3,0,-49,-35,-37,-26,-43,-17,-64,-72,-113,-113,-138,-141,-152,0,0,0,-11,150,52,81,91,133,64,142,57]} 1. c4 {[%emt 0:00:04]} b6 {[%emt 0:00:20]} 2. Nc3 {[%emt 0:00:13]} Bb7 {[%emt 0:00:18]} 3. e4 {[%emt 0:00:14]} e6 {[%emt 0:00:08]} 4. d3 {[%emt 0:00:59]} Bb4 {[%emt 0:00:58]} 5. a3 {[%emt 0:00:59]} Bxc3+ {[%emt 0:00:15]} 6. bxc3 {[%emt 0:00:13] A10: English Opening: Unusual Replies for Black.} Ne7 {[%emt 0:00:13] [#]} 7. Qg4 $146 {[%emt 0:01:37]} ({Predecessor:} 7. f3 O-O 8. d4 d6 9. h4 Nd7 10. Be3 f5 11. Bd3 e5 12. Nh3 h6 13. Qd2 {0-1 Rauch,N (1728)-Fabig,H (1915) Rottach Egern Seniors Cup 10th 2022 (9)}) 7... Ng6 {[%emt 0:20:40]} 8. h4 {[%emt 0:00:36] White wants to play h5. The position is equal.} f5 {[%emt 0:06:10]} 9. exf5 {[%emt 0:03:52]} exf5 {[%emt 0:00:03]} 10. Qg5 {[%emt 0:00:41]} (10. Qxf5 $14 Qe7+ 11. Ne2) 10... O-O {[%emt 0:04:51]} 11. Qxd8 {[%emt 0:00:16]} Rxd8 {[%emt 0:00:01]} 12. Bg5 {[%emt 0:00:42]} Re8+ {[%emt 0:00:14]} 13. Ne2 {[%emt 0:02:38]} (13. Kd2 $11 {should be considered.}) 13... h6 {[%emt 0:04:01]} 14. Bd2 {[%emt 0:01:41]} Ne5 {[%emt 0:02:18]} 15. Rh3 {[%emt 0:00:07]} Na6 {[%emt 0:12:28]} 16. O-O-O {[%emt 0:01:57]} (16. Bf4 $11 {was preferrable.}) 16... Nc5 $15 {[%emt 0:00:52]} 17. Nd4 {[%emt 0:00:49]} Ng4 {[%emt 0:04:41] Excellent horsemanship.} 18. Rg3 {[%emt 0:01:45]} Nxf2 {[%emt 0:05:36] ...f4 would be deadly.} 19. Bxh6 {[%emt 0:00:14] [#]} Nxd1 {[%emt 0:00:34]} (19... Ne6 $1 $17 {White must now prevent ...f4.} 20. Nxe6 {[%mdl 64] Remove Defender} Rxe6 21. Bxg7 (21. Rxg7+ Kh8 $17) 21... Kh7) 20. Rxg7+ $11 {[%emt 0:00:15]} Kh8 {[%emt 0:00:13]} 21. Kxd1 {[%emt 0:00:09]} Ne6 $2 {[%emt 0:21:20]} (21... Rg8 $11 22. Nxf5 Rxg7 23. Bxg7+ Kh7) 22. Rf7 {[%emt 0:00:48] White has more active pieces.} (22. Rxd7 $16 {Hoping for g3.} Kg8 23. g3 (23. Nxf5 Red8 $16)) 22... Nxd4 {[%emt 0:06:36]} 23. cxd4 {[%emt 0:00:30]} Re6 {[%emt 0:03:47]} 24. Bd2 {[%emt 0:00:10]} (24. Bg7+ $16 Kg8 25. Rxd7) 24... d5 {[%emt 0:03:37]} (24... Bc6 $14) 25. Be2 {[%emt 1:21:31] Weighted Error Value: White=0.29 (precise) /Black=0.42} ({Don't take} 25. Rxf5 Kg7 $16) (25. Rxc7 $16 Bc6 26. g3) 1-0